Cogmind - Beta 14 @@@ ROGUE MODE // 2024.12.28 @ 00:58:54 Player: Golinth Result: Destroyed by Y-45 Defender with Heavy Assault Rifle Performance ------------- Evolutions (2) 1000 Regions Visited (5) 1000 Robots Destroyed (18) 90 Value Destroyed (451) 451 Prototype IDs (2) 40 Alien Tech Used (0) 0 Bonus (0) 0 TOTAL SCORE: 2581 Bonus ------- None Cogmind --------- Core Integrity 0/550 Matter 116/300 Energy 100/100 System Corruption 9% Temperature Cool (9) Movement Core (50) Location -8/Storage Parts ------- > --- POWER (1) -------- (None) > --- PROPULSION (4) --- (None) > --- UTILITY (4) ------ Signal Interpreter > --- WEAPON (2) ------- Mini Grenade Launcher Flail > --- INVENTORY (5) ---- Light Ion Engine System Shield Peak State ------------ > --- POWER ------------ Nuclear Core > --- PROPULSION ------- Improved Flight Unit Cesium-ion Thruster Improved VTOL Module Improved VTOL Module > --- UTILITY ---------- Weight Redist. System Structural Scanner Signal Interpreter Reaction Control System > --- WEAPON ----------- Battle Cannon Flail > --- INVENTORY -------- Light Ion Engine System Shield Light Assault Rifle [Rating: 28] Favorites ----------- Power Light Ion Engine Engine Light Ion Engine Power Core Nuclear Core Propulsion Aluminum Leg Leg Aluminum Leg Hover Unit Combat Airjet Flight Unit Cesium-ion Thruster Utility Structural Scanner Device Structural Scanner Storage Medium Storage Unit Processor Signal Interpreter Protection Light Armor Plating Weapon Light Assault Rifle Energy Gun Medium Laser Ballistic Gun Light Assault Rifle Ballistic Cannon Battle Cannon Launcher Mini Grenade Launcher Impact Weapon Flail Slashing Weapon Mining Claw Build | -11 -10 -10 -9 -8 -8 ------- Run | Yrd Mat Min Mat Mat Sto Slots Evolved 4 | . . . 2 2 . Power . | . . . . . . Propulsion 2 | . . . 1 1 . Utility 2 | . . . 1 1 . Weapon . | . . . . . . Parts Attached 62 | 6 18 18 8 3 9 Power 7 | 1 4 1 . 1 . Engine 5 | 1 3 1 . . . Core 2 | . 1 . . 1 . Reactor . | . . . . . . Propulsion 24 | 2 5 9 4 1 3 Treads . | . . . . . . Leg 10 | 2 5 3 . . . Wheel . | . . . . . . Hover 1 | . . 1 . . . Flight 13 | . . 5 4 1 3 Utility 12 | 1 3 2 3 1 2 Device 7 | . 1 1 2 1 2 Storage 3 | 1 1 1 . . . Processor 1 | . . . 1 . . Hackware . | . . . . . . Protection 1 | . 1 . . . . Artifact . | . . . . . . Weapon 19 | 2 6 6 1 . 4 Energy Gun 7 | 1 3 3 . . . Energy Cannon . | . . . . . . Ballistic Gun 4 | 1 1 1 . . 1 Ballistic Cannon 3 | . . 2 . . 1 Launcher 1 | . . . . . 1 Special Weapon . | . . . . . . Impact Weapon 2 | . . . 1 . 1 Slashing Weapon 2 | . 2 . . . . Piercing Weapon . | . . . . . . Special Melee Weapon . | . . . . . . Unidentified Prototypes 2 | . . . 1 . 1 Parts Lost 26 | . 5 7 . . 14 Power 4 | . 2 1 . . 1 Propulsion 12 | . 2 4 . . 6 Utility 6 | . 1 . . . 5 Weapon 4 | . . 2 . . 2 Highest Loss Streak 11 | . 3 3 . . 11 To Critical Strikes . | . . . . . . Average Slot Usage (%) 88 | . 86 82 100 100 92 Engine 6 | . 9 7 11 1 . Core 3 | . 3 2 . 7 8 Leg 11 | . 26 13 . . . Hover 1 | . . 5 . . . Flight 15 | . . 7 33 36 31 Device 17 | . 3 17 26 27 24 Storage 5 | . 14 5 . . . Processor 3 | . . . 6 9 9 Energy Gun 5 | . 11 6 . . . Ballistic Gun 7 | . 6 6 11 9 8 Ballistic Cannon 2 | . . . 10 . . Impact Weapon 2 | . . . . 9 8 Slashing Weapon 4 | . 7 7 . . . Peak Build Rating 28 | 6 10 11 19 25 28 Average Rating 12 | 4 6 8 16 23 23 On Entrance 10 | . 6 10 7 17 25 Naked Turns . | . . . . . . Heaviest Build 20 | 13 20 20 10 13 13 Greatest Support 26 | 20 20 20 15 20 26 Greatest Overweight (x) 2 | . 1 2 . . . Average Overweight (x) . | . . . . . . Largest Inventory Capacity 10 | 8 10 10 5 5 5 Average Capacity 6 | 6 9 7 5 5 5 Most Carried 10 | 5 10 10 5 5 5 Average Carried 5 | 2 6 5 4 4 4 Final Capacity 10 | 8 10 5 5 5 5 Final Carried 10 | 2 10 5 5 5 2 Class Distribution -------------------- 49% | Mutant 32% | Sprinter 17% | Scavenger-Mutant Dominant Class ---------------- Mutant | -10/Materials Mutant | -10/Mines Sprinter | -9/Materials Sprinter | -8/Materials Sprinter | -8/Storage Resources | -11 -10 -10 -9 -8 -8 ----------- Run | Yrd Mat Min Mat Mat Sto Matter Collected 791 | 260 146 225 67 . 93 Remotely . | . . . . . . Salvage Created 573 | . 263 98 67 . 145 Parts 32 | . 22 . 4 . 6 Haulers Intercepted 1 | . . . 1 . . Recyclers Shooed 1 | . 1 . . . . Parts Field Recycled . | . . . . . . Retrieved Matter . | . . . . . . Parts Self-Destructed . | . . . . . . Prevented . | . . . . . . Kills | -11 -10 -10 -9 -8 -8 ------- Run | Yrd Mat Min Mat Mat Sto Combat Hostiles Destroyed 21 | . 7 9 1 . 4 Melee 12 | . 7 4 . . 1 Guns 4 | . . 4 . . . Cannons 2 | . . 1 1 . . AOE 3 | . . . . . 3 Classes Destroyed 9 | . 3 1 2 . 3 Worker 1 | . . . . . 1 Builder 1 | . 1 . . . . Hauler 1 | . . . 1 . . Recycler 1 | . . . . . 1 Watcher 2 | . . . 2 . . Swarmer 4 | . 3 . . . 1 Grunt 7 | . 4 . 1 . 2 Sentry 1 | . . . . . 1 Assembled 9 | . . 9 . . . Best Kill Streak 3 | . 3 3 2 . 3 Combat Bots Only 3 | . 3 3 1 . 3 Max Kills in Single Turn 1 | . 1 1 1 . 1 Gunslinging . | . . . . . . Exploded 1 | . . . . . 1 Melee 1 | . 1 1 . . 1 Uniques/NPCs Destroyed . | . . . . . . Combat | -11 -10 -10 -9 -8 -8 -------- Run | Yrd Mat Min Mat Mat Sto Hostile Shots Fired 207 | . 69 30 . . 108 Missed 59 | . 14 8 . . 37 Damage Taken 2603 | . 667 563 . . 1373 Core 800 | . 150 96 . . 554 Absorbed by Shields . | . . . . . . Core Remaining (%) 67 | 100 . 1 100 . . Volleys Fired 56 | . 3 24 17 . 12 Largest 2 | . 1 2 2 . 2 Hottest 70 | . 50 70 59 . 59 Shots Fired 82 | . 3 31 34 . 14 Gun 47 | . 3 24 17 . 3 Cannon 28 | . . 7 17 . 4 Launcher 7 | . . . . . 7 Special . | . . . . . . Kinetic 57 | . 1 15 34 . 7 Thermal 18 | . 2 16 . . . Explosive 7 | . . . . . 7 Electromagnetic . | . . . . . . Robot Hit Streak 5 | . 1 3 5 . 4 Robot Miss Streak 4 | . 2 4 3 . 1 Penetration Max . | . . . . . . Secondary Targets . | . . . . . . Shots Hit Robots 77 | . 22 18 23 . 14 Core Hits 40 | . 10 14 5 . 11 Critical Kills . | . . . . . . Critical Parts Destroyed . | . . . . . . Critical Strikes . | . . . . . . Melee Attacks 67 | . 29 7 1 . 30 Impact 31 | . . . 1 . 30 Slashing 36 | . 29 7 . . . Piercing . | . . . . . . Sneak Attacks 4 | . 2 . . . 2 Combat Hostiles . | . . . . . . Follow-up Attacks . | . . . . . . Damage Inflicted 1992 | . 527 309 414 . 742 Guns 198 | . 9 121 68 . . Cannons 438 | . . 39 346 . 53 Explosions 327 | . . . . . 327 Melee 1029 | . 518 149 . . 362 Ramming . | . . . . . . Kinetic 536 | . 9 60 414 . 53 Thermal 100 | . . 100 . . . Explosive 327 | . . . . . 327 Electromagnetic . | . . . . . . Impact 362 | . . . . . 362 Slashing 667 | . 518 149 . . . Piercing . | . . . . . . Highest Corruption 9 | . . 4 . . 9 Average Corruption 5 | . . 3 . . 9 Corruption Purged . | . . . . . . Corruption Blocked . | . . . . . . Effects 24 | . . 16 . . 8 Message Errors 6 | . . 3 . . 3 Matter Fused 5 | . . 3 . . 2 Heat Flow Errors 4 | . . 3 . . 1 Data Loss (minor) 1 | . . 1 . . . Data Loss (major) 2 | . . 1 . . 1 Misfires 2 | . . 1 . . 1 Alerts 3 | . . 3 . . . Weapon Failures 1 | . . 1 . . . Overload Shots . | . . . . . . Overflow Damage 84 | . 10 . . . 74 Projectiles . | . . . . . . Explosions . | . . . . . . Melee 84 | . 10 . . . 74 Knockbacks 2 | . . . 1 . 1 Impact 1 | . . . . . 1 Kinetic 1 | . . . 1 . . Secondary . | . . . . . . Self-Inflicted Damage 53 | . . . . . 53 Shots 2 | . . . . . 2 Rammed . | . . . . . . Targets Rammed . | . . . . . . Kicked . | . . . . . . Crushed . | . . . . . . Highest Temperature 277 | . 32 227 37 . 277 Average Temperature 57 | . 16 74 13 . 84 Received Heat Transfer 812 | . 285 140 . . 387 Siege Activations . | . . . . . . Robots Corrupted 1 | . . . . . 1 Combat Hostiles . | . . . . . . Parts Fried 2 | . . . . . 2 Impact Corruptions 2 | . . . . . 2 Robots Melted . | . . . . . . Combat Hostiles . | . . . . . . Parts Melted . | . . . . . . Heat Transferred 296 | . . 296 . . . Parts Sabotaged . | . . . . . . Parts Stolen . | . . . . . . Parts Stripped . | . . . . . . Power Chain Reactions . | . . . . . . Alert | -11 -10 -10 -9 -8 -8 ------- Run | Yrd Mat Min Mat Mat Sto Peak Influence 170 | . 151 15 133 55 170 Initial 55 | . . 1 . 55 22 Average 31 | . 38 . 51 55 64 Maximum Alert Level . | . . . . . . Low Security (%) 100 | 100 100 100 100 100 100 Level 1 . | . . . . . . Level 2 . | . . . . . . Level 3 . | . . . . . . Level 4 . | . . . . . . Level 5 . | . . . . . . High Security . | . . . . . . Max Security . | . . . . . . Squads Dispatched 3 | . 1 . . . 2 Investigation . | . . . . . . Extermination . | . . . . . . Reinforcement 3 | . 1 . . . 2 Assault . | . . . . . . Garrison . | . . . . . . Intercept . | . . . . . . Searches Triggered . | . . . . . . Construction Impeded . | . . . . . . Haulers Reinforced . | . . . . . . Active Scanning Responses . | . . . . . . Cargo Convoy Interrupts . | . . . . . . Stealth | -11 -10 -10 -9 -8 -8 --------- Run | Yrd Mat Min Mat Mat Sto Distress Signals 3 | . 2 . . . 1 Communications Jammed . | . . . . . . Distress Signals . | . . . . . . Times Spotted 51 | . 10 16 8 . 17 Peak Tracking Total 10 | . 7 5 3 . 10 Tactical Retreats 5 | . 1 2 1 . 1 Traps | -11 -10 -10 -9 -8 -8 ------- Run | Yrd Mat Min Mat Mat Sto Traps Triggered 3 | . 3 . . . . Indirectly . | . . . . . . Trap Hack Attempts . | . . . . . . Triggered . | . . . . . . Disarmed . | . . . . . . Reprogrammed . | . . . . . . Reused . | . . . . . . Traps Extracted . | . . . . . . Installed . | . . . . . . Triggered . | . . . . . . Machines | -11 -10 -10 -9 -8 -8 ---------- Run | Yrd Mat Min Mat Mat Sto Machines Disabled 3 | . . . . . 3 Max in Single Turn 1 | . . . . . 1 Machines Repaired . | . . . . . . Machines Dismantled . | . . . . . . Machines Sabotaged . | . . . . . . Overloaded Fab Kills . | . . . . . . Hacking | -11 -10 -10 -9 -8 -8 --------- Run | Yrd Mat Min Mat Mat Sto Machines Accessed 9 | . 2 . 1 1 5 Terminals 6 | . 1 . . . 5 Fabricators . | . . . . . . Repair Stations . | . . . . . . Recycling Units 3 | . 1 . 1 1 . Scanalyzers . | . . . . . . Garrison Access . | . . . . . . Total Hacks 19 | . 5 . 2 2 10 Successful 9 | . 2 . 1 1 5 Failed 10 | . 3 . 1 1 5 Catastrophic 2 | . 1 . . . 1 Database Lockouts . | . . . . . . Manual 15 | . 4 . 2 2 7 Terminals 13 | . 3 . . . 10 Fabricators . | . . . . . . Repair Stations . | . . . . . . Recycling Units 6 | . 2 . 2 2 . Scanalyzers . | . . . . . . Garrison Access . | . . . . . . Terminal Hacks 3 | . . . . . 3 Open Door 2 | . . . . . 2 Locate Traps 1 | . . . . . 1 Fabricator Hacks . | . . . . . . Repair Station Hacks . | . . . . . . Recycling Unit Hacks . | . . . . . . Scanalyzer . | . . . . . . Garrison Access Hacks . | . . . . . . Unauthorized Hacks 6 | . 2 . 1 1 2 Terminals 3 | . 1 . . . 2 Assimilate 1 | . 1 . . . . Botnet 2 | . . . . . 2 Fabricators . | . . . . . . Repair Stations . | . . . . . . Recycling Units 3 | . 1 . 1 1 . Reject 3 | . 1 . 1 1 . Scanalyzers . | . . . . . . Garrison Access . | . . . . . . Data Cores Recovered . | . . . . . . Used . | . . . . . . Hacking Detections 6 | . 2 . 1 1 2 Full Trace Events 1 | . 1 . . . . Feedback Events . | . . . . . . Feedback Blocked . | . . . . . . Robot Schematics Acquired . | . . . . . . Robots Built . | . . . . . . Authchips . | . . . . . . Time . | . . . . . . Total Robot Build Rating . | . . . . . . Part Schematics Acquired . | . . . . . . Parts Built . | . . . . . . Authchips . | . . . . . . Time . | . . . . . . Total Part Build Rating . | . . . . . . Parts Repaired . | . . . . . . Time . | . . . . . . Parts Recycled . | . . . . . . Recycled Matter . | . . . . . . Retrieved Matter . | . . . . . . Retrieved Components . | . . . . . . Parts Scanalyzed . | . . . . . . Part Schematics Acquired . | . . . . . . Parts Damaged . | . . . . . . Bothacking | -11 -10 -10 -9 -8 -8 ------------ Run | Yrd Mat Min Mat Mat Sto Used RIF Installer . | . . . . . . Robots Hacked . | . . . . . . Non-combat . | . . . . . . Combat . | . . . . . . Robot Hacks Applied . | . . . . . . Relay Couplers Released . | . . . . . . Fabnet Peak Effective % . | . . . . . . Robots Rewired . | . . . . . . Allies Hacked . | . . . . . . Hacks Repelled . | . . . . . . Allies | -11 -10 -10 -9 -8 -8 -------- Run | Yrd Mat Min Mat Mat Sto Total Allies . | . . . . . . Largest Group . | . . . . . . Highest-Rated Group . | . . . . . . Highest-Rated Ally . | . . . . . . Total Orders . | . . . . . . Ally Attacks . | . . . . . . Total Damage . | . . . . . . Kills . | . . . . . . Allies Corrupted . | . . . . . . Allies Melted . | . . . . . . Intel | -11 -10 -10 -9 -8 -8 ------- Run | Yrd Mat Min Mat Mat Sto Robot Analysis Total . | . . . . . . Derelict Logs Recovered . | . . . . . . Drone Launches . | . . . . . . Drone Recoveries . | . . . . . . Exploration | -11 -10 -10 -9 -8 -8 ------------- Run | Yrd Mat Min Mat Mat Sto Turns Passed 2422 | 63 535 884 354 50 536 Spaces Moved 1994 | 47 322 744 456 76 349 Core 70 | 14 3 8 . . 45 Treads . | . . . . . . Legs 563 | 33 319 211 . . . Wheels . | . . . . . . Hover 256 | . . 256 . . . Flight 1105 | . . 269 456 76 304 Fastest Speed 27 | 50 100 37 30 27 27 Average Speed 66 | 99 121 83 31 27 31 Slowest Speed 190 | 120 190 160 34 27 50 Overloaded Moves . | . . . . . . Propulsion Burnouts . | . . . . . . Robots Hopped . | . . . . . . Cave-ins Triggered 1 | . . . . . 1 Exploration Rate (%) 35 | 3 53 64 25 5 63 Regions Visited 5 Branch Regions 2 Pre-discovered Areas . | . . . . . . Known Exits Taken 2 | . . . 1 1 . Unknown Exits Taken 3 | 1 1 1 . . . Scrap Searched . | . . . . . . Spaces Dug 13 | . 1 . 1 . 11 Terrain Destroyed 61 | . 1 2 2 . 56 Melee 13 | . 1 . 1 . 11 Projectile 3 | . . 2 1 . . AOE 45 | . . . . . 45 Terrain Rammed . | . . . . . . Walls Destroyed . | . . . . . . Machines Disabled . | . . . . . . Actions | -11 -10 -10 -9 -8 -8 --------- Run | Yrd Mat Min Mat Mat Sto Total 2902 | 63 407 971 638 104 719 Wait 638 | 3 8 149 142 22 314 Move 1989 | 46 321 743 455 75 349 Hop . | . . . . . . Pick Up 61 | 8 22 15 9 3 4 Fast Attach . | . . . . . . Attach 45 | 6 13 15 3 2 6 Detach 5 | . 2 3 . . . Swap 17 | . 5 3 5 1 3 Drop 24 | . 4 12 6 1 1 Fire 56 | . 3 24 17 . 12 Melee 67 | . 29 7 1 . 30 Ram . | . . . . . . Kick . | . . . . . . Crush . | . . . . . . Escape Stasis . | . . . . . . Rewire . | . . . . . . Trap . | . . . . . . Miscellaneous . | . . . . . . Route ------- -11/Scrapyard -10/Materials (discovered 2 exits: *Mat / [*Min]) -10/Mines -9/Materials (discovered 2 exits: *Mat / [*Min]) -8/Materials -8/Storage History --------- Turn | Location | Event 4 | -11/Scrapyard | Discovered new exit (range 15) 64 | -11/Scrapyard | Entered Materials 179 | -10/Materials | Discovered new exit (range 7) 311 | -10/Materials | Build established: Mutant 428 | -10/Materials | Core integrity fell below 50% 468 | -10/Materials | Lost 3 parts (2p1n) 533 | -10/Materials | Discovered new exit (range 13) 599 | -10/Materials | Entered Mines 613 | -10/Mines | A weapon hastily lodged in a ceiling crevice suddenly fell to the ground 750 | -10/Mines | Build established: Scavenger-Mutant 760 | -10/Mines | Assembled infested the area 823 | -10/Mines | Lost 3 parts (1p2n) 1001 | -10/Mines | Core integrity fell below 20% 1092 | -10/Mines | Build established: Mutant 1477 | -10/Mines | Discovered new exit (range 10) 1483 | -10/Mines | Entered Materials 1483 | -9/Materials | Evolved 2 slots: Propulsion x1, Utility x1 1831 | -9/Materials | Discovered new exit (range 14) 1836 | -9/Materials | Discovered new exit (range 8) 1837 | -9/Materials | Identified exit to Materials 1837 | -9/Materials | Entered another Materials area 1837 | -8/Materials | Evolved 2 slots: Propulsion x1, Utility x1 1839 | -8/Materials | Discovered new exit (range 15) 1864 | -8/Materials | Build established: Sprinter 1886 | -8/Materials | Identified exit to Storage 1887 | -8/Materials | Entered Storage 2214 | -8/Storage | Crushed by falling debris 2245 | -8/Storage | Lost 3 parts (1n2u) 2381 | -8/Storage | Core integrity fell below 50% 2395 | -8/Storage | Core integrity fell below 20% 2423 | -8/Storage | Destroyed by Y-45 Defender with Heavy Assault Rifle Last Messages --------------- 02371_ Cesium-ion Thruster destroyed. 02371_ Battle Cannon destroyed. 02372_ Critical hit (Burn: +37). 02375_ System corrupted: Substantial component data lost. 02375_ The unstable cave ceiling collapses. 02375_ Imp. VTOL Module destroyed. 02375_ Critical hit (Burn: +37). 02379_ Nuclear Core destroyed. 02379_ Critical hit (Burn: +37). 02380_ Imp. VTOL Module destroyed. 02381_ Structural Scanner destroyed. 02387_ Critical hit (Burn: +37). 02395_ Weight Redist. System destroyed. 02403_ Storage Shell breached. 02407_ Acquired Mni. Grenade Launcher. 02413_ The unstable cave ceiling collapses. 02413_ G-47 Trooper destroyed. 02420_ Y-45 Defender destroyed. 02421_ System corrupted: Matter fused (-9). 02422_ Storage Shell breached. Map ----- +----------------------------------------------------+ | ##??### """ # ##?????? | | ###???## """ # """##?#?#?? | | ######## # """####???? | | ######## """ # """##?#???? | | ##T ### """ # """##?????? | | # " # """ # """##?#???? | | # ### # ##?????? | | + #####"T"##############???#?? | | ## ?####"""## ##########??#???? | | ############### ####?#?#?####???? | | #####???####### ###?#???#????#??? | | #??##?##?????#####??###?#???????? | | ?#??#??#????###"##???????##??#??? | | ??????????##"T"###?#????????#???? | | ?? ??#??# #?????????????? | | ????#???# ??????#????????? | | ???????## ??????#?#??????? | | ?????#??" !! ??#?#??????????? | | ???#?????? ! ???????#???????? | | ???????"" ? ?#????#????????? | | ???????????/ ! ?###########???? | | ????????? ?# #???? | | ?????????######/### #???? | | ?????????#### # """ #???? | | ????????????# # " " ! #???? | | ????????????# + "?" @ #???? | | ????????????# # "= #??? | | ????????????# # = #??? | | ????????###### ## % #??? | | ???????""""" # #### ! ##??? | | ?????? """"" # ##?# #???? | | ?????# """"" # ##? #???? | | ?????# + #### ???? | | ?????#= # ##?# Y #???? | | ?????# ! # ##? #???? | | ?????# # # ? Y #???? | | ######### #### # " " #???? | | ############## # "*"""" ##???? | | # ?"*???? ?????? | | + ??????? ?????? | | # ??????? ?????? | | ##+############ ## ?????????????? | | ######## ## ?????????????? | | "" ##????## ##??????????????? | | "" ##????## ######??????????? | | "" ##????## ######??????????? | | "" ##?##### / ]##??????????? | | T" ##?##### "T####??????????? | | "" ##?## # ####??????????? | | ##?## ###??????????? | +----------------------------------------------------+ Best States ------------- Heat Dissipation 31 Energy Generation 14 Energy Capacity 250 Matter Stores 300 Matter Capacity 300 Sight Range 16 Terrain Scan Range 16 Terrain Scan Density 10 Additional Mass Support 6 Armor Coverage 150 Evasion (%) 72 Item Schematics ----------------- None Robot Schematics ------------------ None Fabricated ------------ Nothing Alien Tech Used ----------------- None Achievements -------------- Close Call Challenges ------------ None Game ------ Seed CobblerAlloyAmplifier Manual? 0 Play Time 00:32:23 Cumulative 10.6 hours Start 2024.12.28 @ 00:27:34 End 2024.12.28 @ 00:58:54 Sessions 1 Manual Loads 0 Difficulty Rogue Special Mode None Game No. 19 Rogue 12 Adventurer 7 Explorer 0 Win Type - Total 0 Types 0/0/0/0/0/0/0/0/0 Lore% 6 Gallery% 18 Achievement% 17 Wizard Run 0 Options --------- Layout 0 ASCII 0 Keyboard 0 Movement Mouse Keybinds 0 Fullscreen 1 Font 24/Smallcaps Map View 76x50 Zoom Use 0% Tactical HUD 1 Map Filters NONE Filters NONE Steam 1 RUN: 50219b1e-b50c-4506-bdb3-56757ba788b5